Cogmind - Beta 12 *** ADVENTURER MODE // 2023.06.03 @ 03:49:48 Player: Moshh Result: Self-destructed Performance ------------- Evolutions (1) 500 Regions Visited (2) 400 Robots Destroyed (23) 115 Value Destroyed (573) 573 Prototype IDs (0) 0 Alien Tech Used (0) 0 Bonus (0) 0 TOTAL SCORE: 1588 Bonus ------- None Cogmind --------- Core Integrity 256/400 Matter 300/300 Energy 2/100 System Corruption 1% Temperature Cool (0) Movement Walking (90) Location -9/Materials Parts ------- > --- POWER (1) -------- (None) > --- PROPULSION (3) --- VSS Leg VSS Leg VSS Leg > --- UTILITY (3) ------ Improved Signal Interpreter ECM Suite Hacking Suite > --- WEAPON (2) ------- Light Assault Rifle Light Assault Rifle > --- INVENTORY (5) ---- Light Nuclear Core VSS Leg Structural Scanner Peak State ------------ > --- POWER ------------ Light Nuclear Core > --- PROPULSION ------- VSS Leg VSS Leg VSS Leg > --- UTILITY ---------- Improved Signal Interpreter ECM Suite Hacking Suite > --- WEAPON ----------- Backup Laser I Heavy Assault Rifle > --- INVENTORY -------- Light Nuclear Core VSS Leg Light Assault Rifle Light Assault Rifle [Rating: 22] Favorites ----------- Power Light Ion Engine Engine Light Ion Engine Power Core Light Nuclear Core Propulsion Aluminum Leg Leg Aluminum Leg Utility ECM Suite Device ECM Suite Processor Improved Signal Interpreter Hackware Hacking Suite Weapon Heavy Assault Rifle Energy Gun Backup Laser I Ballistic Gun Heavy Assault Rifle Special Melee Weapon Datajack Build | -11 -10 -9 ------- Run | Jun Mat Mat Slots Evolved 2 | . . 2 Power . | . . . Propulsion 1 | . . 1 Utility 1 | . . 1 Weapon . | . . . Parts Attached 24 | 5 2 17 Power 4 | 1 . 3 Engine 3 | 1 . 2 Core 1 | . . 1 Reactor . | . . . Propulsion 9 | 2 1 6 Treads . | . . . Leg 9 | 2 1 6 Wheel . | . . . Hover . | . . . Flight . | . . . Utility 4 | . 1 3 Device 2 | . 1 1 Storage . | . . . Processor 1 | . . 1 Hackware 1 | . . 1 Protection . | . . . Artifact . | . . . Weapon 7 | 2 . 5 Energy Gun . | . . . Energy Cannon . | . . . Ballistic Gun 6 | 2 . 4 Ballistic Cannon . | . . . Launcher . | . . . Special Weapon . | . . . Impact Weapon . | . . . Slashing Weapon . | . . . Piercing Weapon . | . . . Special Melee Weapon 1 | . . 1 Unidentified Prototypes . | . . . Parts Lost 4 | . . 4 Power 1 | . . 1 Propulsion 1 | . . 1 Utility . | . . . Weapon 2 | . . 2 Highest Loss Streak 2 | . . 2 To Critical Strikes . | . . . Average Slot Usage (%) 79 | . 77 80 Engine 8 | . 14 5 Core 3 | . . 4 Leg 29 | . 28 29 Device 9 | . 6 10 Processor 3 | . . 5 Hackware 5 | . . 8 Ballistic Gun 18 | . 28 13 Naked Turns . | . . . Heaviest Build 13 | 6 8 13 Greatest Support 36 | 20 20 36 Greatest Overweight (x) . | . . . Average Overweight (x) . | . . . Largest Inventory Capacity 5 | 5 5 5 Average Capacity 5 | 5 5 5 Most Carried 5 | 5 5 5 Average Carried 3 | . 2 3 Final Capacity 5 | 5 5 5 Final Carried 4 | . 4 3 Class Distribution -------------------- 50% | Mutant 34% | Hacker-Mutant 15% | Scavenger-Mutant Dominant Class ---------------- Mutant | -10/Materials Hacker-Mutant | -9/Materials Resources | -11 -10 -9 ----------- Run | Jun Mat Mat Matter Collected 731 | 142 176 413 Remotely . | . . . Salvage Created 708 | . 176 532 Parts 59 | . 23 36 Haulers Intercepted . | . . . Recyclers Shooed . | . . . Parts Field Recycled . | . . . Retrieved Matter . | . . . Parts Self-Destructed . | . . . Prevented . | . . . Kills | -11 -10 -9 ------- Run | Jun Mat Mat Combat Hostiles Destroyed 19 | . 8 11 Guns 19 | . 8 11 Classes Destroyed 6 | . 3 3 Worker 1 | . . 1 Operator 1 | . . 1 Watcher 2 | . 1 1 Swarmer 8 | . 6 2 Grunt 7 | . 2 5 Sentry 4 | . . 4 Best Kill Streak 4 | . 3 4 Combat Bots Only 3 | . 3 2 Max Kills in Single Turn 2 | . 2 1 Gunslinging 1 | . 1 . Exploded . | . . . Melee . | . . . Uniques/NPCs Destroyed . | . . . Combat | -11 -10 -9 -------- Run | Jun Mat Mat Damage Taken 1056 | . 382 674 Core 284 | . 140 144 Absorbed by Shields . | . . . Regen/Repaired (Parts) 14 | . . 14 Core Remaining (%) 72 | 100 44 . Volleys Fired 92 | . 23 69 Largest 2 | . 2 2 Hottest 53 | . 40 53 Shots Fired 145 | . 46 99 Gun 145 | . 46 99 Cannon . | . . . Launcher . | . . . Special . | . . . Kinetic 138 | . 46 92 Thermal 7 | . . 7 Explosive . | . . . Electromagnetic . | . . . Robot Hit Streak 20 | . 17 20 Robot Miss Streak 3 | . 3 2 Penetration Max . | . . . Secondary Targets 4 | . 4 . Max Gunslinging Chain 1 | . 1 . Shots Hit Robots 116 | . 34 82 Core Hits 39 | . 14 25 Critical Kills 2 | . . 2 Critical Parts Destroyed 1 | . . 1 Critical Strikes 3 | . . 3 Destroy 3 | . . 3 Melee Attacks . | . . . Impact . | . . . Slashing . | . . . Piercing . | . . . Sneak Attacks . | . . . Combat Hostiles . | . . . Follow-up Attacks . | . . . Damage Inflicted 1373 | . 343 1030 Guns 1371 | . 343 1028 Cannons . | . . . Explosions . | . . . Melee . | . . . Ramming 2 | . . 2 Kinetic 1332 | . 343 989 Thermal 39 | . . 39 Explosive . | . . . Electromagnetic . | . . . Impact . | . . . Slashing . | . . . Piercing . | . . . Highest Corruption 1 | . . 1 Average Corruption 1 | . . 1 Corruption Purged . | . . . Corruption Blocked . | . . . Overload Shots . | . . . Overflow Damage . | . . . Projectiles . | . . . Explosions . | . . . Melee . | . . . Knockbacks . | . . . Impact . | . . . Kinetic . | . . . Secondary . | . . . Self-Inflicted Damage . | . . . Shots . | . . . Rammed . | . . . Targets Rammed 2 | . . 2 Kicked 2 | . . 2 Crushed . | . . . Highest Temperature 47 | . 47 25 Average Temperature 17 | . 20 8 Received Heat Transfer 657 | . 264 393 Siege Activations . | . . . Robots Corrupted . | . . . Combat Hostiles . | . . . Parts Fried . | . . . Impact Corruptions . | . . . Robots Melted . | . . . Combat Hostiles . | . . . Parts Melted . | . . . Heat Transferred 148 | . . 148 Parts Sabotaged . | . . . Parts Stolen . | . . . Parts Stripped . | . . . Power Chain Reactions . | . . . Missiles Intercepted . | . . . Alert | -11 -10 -9 ------- Run | Jun Mat Mat Peak Influence 222 | . 206 222 Initial 15 | . . 15 Average 80 | . 80 85 Maximum Alert Level 1 | . 1 1 Low Security (%) 82 | 100 77 83 Level 1 17 | . 22 16 Level 2 . | . . . Level 3 . | . . . Level 4 . | . . . Level 5 . | . . . High Security . | . . . Max Security . | . . . Squads Dispatched 4 | . 1 3 Investigation 2 | . 1 1 Extermination . | . . . Reinforcement 2 | . . 2 Assault . | . . . Garrison . | . . . Intercept . | . . . Searches Triggered . | . . . Construction Impeded . | . . . Haulers Reinforced . | . . . Active Scanning Responses . | . . . Cargo Convoy Interrupts . | . . . Stealth | -11 -10 -9 --------- Run | Jun Mat Mat Distress Signals 1 | . . 1 Communications Jammed . | . . . Distress Signals . | . . . Times Spotted 41 | . 18 23 Peak Tracking Total 6 | . 4 6 Tactical Retreats 7 | . 2 5 Traps | -11 -10 -9 ------- Run | Jun Mat Mat Traps Triggered 2 | . . 2 Indirectly . | . . . Trap Hack Attempts . | . . . Triggered . | . . . Disarmed . | . . . Reprogrammed . | . . . Reused . | . . . Traps Extracted . | . . . Installed . | . . . Triggered . | . . . Machines | -11 -10 -9 ---------- Run | Jun Mat Mat Machines Disabled . | . . . Max in Single Turn . | . . . Machines Repaired . | . . . Machines Sabotaged . | . . . Overloaded Fab Kills . | . . . Hacking | -11 -10 -9 --------- Run | Jun Mat Mat Machines Accessed 9 | . 4 5 Terminals 7 | . 3 4 Fabricators . | . . . Repair Stations 1 | . . 1 Recycling Units 1 | . 1 . Scanalyzers . | . . . Garrison Access . | . . . Total Hacks 24 | . 8 16 Successful 19 | . 5 14 Failed 5 | . 3 2 Catastrophic . | . . . Database Lockouts . | . . . Manual . | . . . Terminals 17 | . 5 12 Fabricators . | . . . Repair Stations 4 | . . 4 Recycling Units 3 | . 3 . Scanalyzers . | . . . Garrison Access . | . . . Terminal Hacks 12 | . 2 10 Record 5 | . 2 3 Terminal Index 1 | . . 1 Dispatch Records 1 | . . 1 Security Status 1 | . . 1 Patrol Status 1 | . . 1 Hauler Manifests 2 | . . 2 Zone Layout 1 | . . 1 Fabricator Hacks . | . . . Repair Station Hacks 4 | . . 4 Scan Component 2 | . . 2 Repair 1 | . . 1 Refit 1 | . . 1 Recycling Unit Hacks 3 | . 3 . Recycle Component 2 | . 2 . Report Inventory 1 | . 1 . Scanalyzer . | . . . Garrison Access Hacks . | . . . Unauthorized Hacks . | . . . Terminals . | . . . Fabricators . | . . . Repair Stations . | . . . Recycling Units . | . . . Scanalyzers . | . . . Garrison Access . | . . . Data Cores Recovered . | . . . Used . | . . . Hacking Detections 7 | . 4 3 Full Trace Events 2 | . 1 1 Feedback Events . | . . . Feedback Blocked . | . . . Robot Schematics Acquired . | . . . Robots Built . | . . . Authchips . | . . . Time . | . . . Total Robot Build Rating . | . . . Part Schematics Acquired . | . . . Parts Built . | . . . Authchips . | . . . Time . | . . . Total Part Build Rating . | . . . Parts Repaired 1 | . . 1 Time 26 | . . 26 Parts Recycled 2 | . 2 . Recycled Matter . | . . . Retrieved Matter . | . . . Retrieved Components . | . . . Parts Scanalyzed . | . . . Part Schematics Acquired . | . . . Parts Damaged . | . . . Bothacking | -11 -10 -9 ------------ Run | Jun Mat Mat Used RIF Installer . | . . . Robots Hacked . | . . . Non-combat . | . . . Combat . | . . . Robot Hacks Applied . | . . . Relay Couplers Released . | . . . Fabnet Peak Effective % . | . . . Robots Rewired . | . . . Allies Hacked . | . . . Hacks Repelled . | . . . Allies | -11 -10 -9 -------- Run | Jun Mat Mat Total Allies . | . . . Largest Group . | . . . Highest-Rated Group . | . . . Highest-Rated Ally . | . . . Total Orders . | . . . Ally Attacks . | . . . Total Damage . | . . . Kills . | . . . Allies Corrupted . | . . . Allies Melted . | . . . Intel | -11 -10 -9 ------- Run | Jun Mat Mat Robot Analysis Total . | . . . Derelict Logs Recovered . | . . . Drone Launches . | . . . Drone Recoveries . | . . . Exploration | -11 -10 -9 ------------- Run | Jun Mat Mat Turns Passed 1462 | 59 461 942 Spaces Moved 1007 | 51 318 638 Core 17 | 17 . . Treads . | . . . Legs 990 | 34 318 638 Wheels . | . . . Hover . | . . . Flight . | . . . Fastest Speed 50 | 50 120 90 Average Speed 109 | 96 120 105 Slowest Speed 120 | 120 120 120 Overloaded Moves . | . . . Propulsion Burnouts . | . . . Robots Hopped . | . . . Cave-ins Triggered . | . . . Exploration Rate (%) 25 | 3 33 39 Regions Visited 2 Branch Regions . Pre-discovered Areas . | . . . Known Exits Taken . | . . . Unknown Exits Taken 2 | 1 1 . Scrap Searched . | . . . Spaces Dug . | . . . Terrain Destroyed . | . . . Melee . | . . . Projectile . | . . . AOE . | . . . Terrain Rammed . | . . . Walls Destroyed . | . . . Machines Disabled . | . . . Actions | -11 -10 -9 --------- Run | Jun Mat Mat Total 1235 | 60 355 820 Wait 66 | . 6 60 Move 1005 | 50 317 638 Hop . | . . . Pick Up 31 | 5 7 19 Fast Attach . | . . . Attach 13 | 5 1 7 Detach 1 | . . 1 Swap 11 | . 1 10 Drop 14 | . . 14 Fire 92 | . 23 69 Melee . | . . . Ram . | . . . Kick 2 | . . 2 Crush . | . . . Escape Stasis . | . . . Rewire . | . . . Trap . | . . . Miscellaneous . | . . . Route ------- -11/Junkyard -10/Materials -9/Materials History --------- Turn | Location | Event 9 | -11/Junkyard | Discovered new exit (range 16) 60 | -11/Junkyard | Entered Materials 321 | -10/Materials | Build established: Mutant 362 | -10/Materials | Discovered new exit (range 15) 488 | -10/Materials | Core integrity fell below 50% 521 | -10/Materials | Entered another Materials area 521 | -9/Materials | Evolved 2 slots: Propulsion x1, Utility x1 1147 | -9/Materials | Repaired ECM Suite 1329 | -9/Materials | Build established: Hacker-Mutant 1463 | -9/Materials | Self-destructed Last Messages --------------- Destroyed Heat Sink. G-34 Mercenary destroyed. Acquired 38 matter. Acquired 48 matter. K-01 Serf cleans the Atomic Centrifuge. Connecting with Terminal... >>Enumerate(Guards) Retrieving latest reported positions... Security request, restricting to local area... Found 2 active security squads. Downloaded coordinate data. Hvy. Assault Rifle destroyed. Kicked Y-45 Defender. Acquired 4 matter. Lgt. Nuclear Core destroyed. Critical hit (Burn: +37). Y-45 Defender destroyed. Acquired 5 matter. G-34 Mercenary destroyed. Acquired 16 matter. Map ----- +----------------------------------------------------+ | ???????????????????# ???????????????? | | ???????????????????# ???????????????? | | ??????????????????## ##?????????????? | | ????????????????### #?????????????? | | ????????????????? #?????????????? | | ?????????????????? T ??????????????? | | ?????????????????? ??????????????? | | ??????????????????? ??????????????? | | ???????????????????# #??????????????? | | ???????????????????# #??????????????? | | ???????????????????# #??????????????? | | ???????????????????# #?#######??????? | | ???????????????????# #? ???????? | | ????????????####???# #! """ #??????? | | ?####??????# ???# # """ #??????? | | # #??????? ???+ + """ #??????? | | #???????? ???# # #??????? | | ##########/#??## #########??????? | | # # #### #?????????????? | | ##### """ # ####??????????? | | += """ / T =#??????????? | | #####% """ # ##!#########??? | | ????# ###+## ##%## #??? | | ????# """ #????########[## #??? | | ????# """ #????####### [=# #??? | | ????# """ #????+ @[ + """ #??? | | / [#????####### !%# """ #??? | | ############??????????##### """ #??? | | #?????????????????????????########??? | | #???????????????????????????????????? | | #???????????????????????????????????? | | #???????????????????????????????????? | | ? ??????????????????????????????????? | | ?? ?????????????????????????????????? | | ??? #????????????????????????????????? | | ??? #????????????????????????????????? | | ???? #????????????????????????????????? | | ??????????????????????????????????????? | | ??????????????????????????????????????? | | ??????????????????????????????????????? | | ??????????????????????????????????????? | | ??????????????????????????????????????? | | ??????????????????????????????????????? | | ??????????????????????????????????????? | | ??????????????????????????????????????? | | ??????????????????????????????????????? | | ??????????????????????????????????????? | | ??????????????????????????????????????? | | ??????????????????????????????????????? | | ??????????????????????????????????????? | +----------------------------------------------------+ Best States ------------- Heat Dissipation 28 Energy Generation 14 Energy Capacity 265 Matter Stores 300 Matter Capacity 300 Sight Range 16 Terrain Scan Density 10 ECM Strength 1 Resistance: KI 20 Resistance: TH 20 Resistance: EX 20 Resistance: EM 20 Resistance: I 20 Resistance: S 20 Resistance: P 20 Evasion (%) 57 Offensive Hacking 20 Item Schematics ----------------- None Robot Schematics ------------------ None Fabricated ------------ Nothing Alien Tech Used ----------------- None Achievements -------------- None Challenges ------------ None Game ------ Seed BiometalAssemblyClaws Manual? 0 Play Time 00:26:58 Cumulative 3.4 hours Start 2023.06.03 @ 02:04:35 End 2023.06.03 @ 03:49:48 Sessions 5 Manual Loads 0 Difficulty Adventurer Special Mode None Game No. 4 Rogue 0 Adventurer 3 Explorer 1 Win Type - Total 0 Types 0/0/0/0/0/0/0/0/0 Lore% 2 Gallery% 6 Achievement% 4 Wizard Run 0 Options --------- ASCII 0 Keyboard 1 Movement Arrows Keybinds 0 Fullscreen 1 Font 18/Terminus Map View 76x50 Tactical HUD 0 Map Filters NONE Filters NONE Steam 1 RUN: 533a9450-5644-4e91-819a-460da273e6c1